[Event "1000GM MLK Day RR IM-Norm 2024"]
[Site "Sunnyvale"]
[Date "2024.01.15"]
[Round "3.2"]
[White "Figueredo Losada, Leonel"]
[Black "Tang, Dylan"]
[Result "1/2-1/2"]
[ECO "D30"]
[WhiteElo "2381"]
[BlackElo "2206"]
[Annotator "TA"]
[PlyCount "108"]
[EventDate "2024.01.12"]
[EventType "tourn"]
[EventCountry "USA"]
[SourceTitle "playchess.com"]
[Source "ChessBase"]
[SourceQuality "1"]
[TimeControl "5400+30"]

{[%evp 9,108,13,22,27,46,31,49,40,29,20,67,30,38,0,0,0,0,-11,0,0,0,0,0,-6,0,0,0,-8,0,-5,15,7,10,9,29,9,34,1,1,1,2,0,0,0,0,0,0,0,0,0,0,-1,-1,-12,0,0,0,0,0,0,0,0,0,0,0,0,0,0,0,0,0,0,0,0,58,58,58,58,58,58,58,58,58,58,68,47,47,47,47,47,47,47,47,47,47,47,47,47,47,47,54]} 1. d4 {[%emt 0:26:55]} d5 {[%emt 0:00:19]} 2. Nf3 {[%emt 1:04:35]} Nf6 {[%emt 1:31:11]} 3. e3 {[%emt 0:00:00]} e6 {[%emt 0:00:00]} 4. c4 {[%emt 0:00:00]} c5 {[%emt 0:00:00]} 5. cxd5 {[%emt 0:00:00]} Nxd5 {[%emt 0:00:00]} 6. e4 {[%emt 0:00:00] D30: Queen's Gambit Declined: Systems without Nc3.} Nb6 {[%emt 0:00:00]} 7. Nc3 {[%emt 0:02:30]} cxd4 {[%emt 0:00:00]} 8. Qxd4 {[%emt 0:00:00]} Qxd4 {[%emt 0:00:00]} 9. Nxd4 {[%emt 0:00:00] [#]} Bc5 $146 {[%emt 0:00:00]} (9... Bd7 $11 {feels stronger.}) ({Predecessor:} 9... Na6 10. Ndb5 Nd7 11. Be3 b6 12. O-O-O Bb7 13. Be2 Be7 14. Nd6+ Bxd6 15. Rxd6 Ke7 {½-½ Stefanova,A (2469)-Kosteniuk,A (2516) Xian World Summit (Women) 2021 (1)}) 10. Nb3 {[%emt 0:00:00] White is more active.} (10. Ndb5 $5 {[%cal Rb5c7]}) 10... Bb4 {[%emt 0:00:00]} 11. a3 {[%emt 0:00:00]} (11. Bd2 $14) 11... Bxc3+ $11 {[%emt 0:00:00]} 12. bxc3 {[%emt 0:00:00]} Na4 {[%emt 0:00:00]} 13. Be3 {[%emt 0:00:00]} O-O 14. Nc5 {[%emt 0:00:00]} Nxc5 {[%emt 0:06:00]} 15. Bxc5 {[%emt 0:04:00]} Rd8 {[%emt 0:00:00]} 16. Rd1 {[%emt 0:00:00]} Rxd1+ {[%emt 0:00:00]} 17. Kxd1 {[%emt 0:00:00]} b6 {[%emt 0:00:00]} 18. Be3 {[%emt 0:00:00]} Bb7 {[%emt 0:00:00]} 19. f3 {[%emt 0:00:00]} Nc6 {[%emt 0:00:00]} 20. Kc2 {[%emt 0:00:00]} Kf8 {[%emt 0:00:00]} 21. Bb5 {[%emt 0:00:00]} Rd8 {[%emt 0:00:00]} 22. h4 {[%emt 0:00:00]} Ne5 {[%emt 0:00:00]} 23. Rd1 {[%emt 0:00:00]} Rxd1 {[%emt 0:00:00]} 24. Kxd1 {[%emt 0:00:00][%mdl 4096] Endgame KBB-KBN} Bc6 {[%emt 0:00:00]} 25. Be2 {[%emt 0:00:00]} Ba4+ {[%emt 0:00:00]} 26. Kd2 {[%emt 0:00:00]} Bb3 {[%emt 0:00:00]} 27. Bf4 {[%emt 0:00:00]} Nc4+ {[%emt 0:00:00]} 28. Bxc4 {[%emt 0:00:00]} Bxc4 {[%emt 0:00:00] KB-KB} 29. Ke3 {[%emt 0:00:00]} Ke7 {[%emt 0:00:00]} 30. Bb8 {[%emt 0:00:00]} a6 {[%emt 0:00:00]} 31. f4 {[%emt 0:00:00]} f5 {[%emt 0:00:00]} 32. exf5 {[%emt 0:00:00]} exf5 {[%emt 0:00:00]} 33. Kd4 {[%emt 0:00:00]} Bf1 {[%emt 0:00:00]} 34. g3 {[%emt 0:00:00]} h5 {[%emt 0:00:00]} 35. Ke5 {[%emt 0:00:00]} g6 {[%emt 0:00:00]} 36. Ba7 {[%emt 0:00:00]} b5 {[%emt 0:00:00]} 37. Bc5+ {[%emt 0:00:00]} Kd7 {[%emt 0:00:00]} 38. Kf6 {[%emt 0:00:00]} Be2 {[%emt 0:00:00]} 39. Kxg6 {[%emt 0:00:00]} Bg4 {[%emt 0:00:00]} 40. Kf6 {[%emt 0:00:31]} Kc6 {[%emt 0:00:00]} 41. Bb4 Kb6 {[%emt 0:13:30]} ({Black should try} 41... Kd5 $11) 42. Ke5 {[%emt 0:00:40] White is slightly better.} a5 {[%emt 0:00:00]} 43. Be7 {[%emt 0:00:36]} a4 {[%emt 0:00:00]} 44. Kd6 {[%emt 0:00:14]} Be2 {[%emt 0:00:00]} 45. Bd8+ {[%emt 0:00:04]} Ka6 {[%emt 0:00:00]} 46. Kc5 {[%emt 0:00:14]} Bd1 {[%emt 0:00:00]} 47. c4 {[%emt 0:00:21]} bxc4 {[%emt 0:00:00]} 48. Kxc4 {[%emt 0:00:01]} Kb7 {[%emt 0:03:30]} 49. Kc5 {[%emt 0:14:19]} Kc8 {[%emt 0:00:00]} 50. Ba5 {[%emt 0:00:00]} Kd7 {[%emt 0:00:00]} 51. Kd5 {[%emt 0:00:00]} Bg4 {[%emt 0:00:00]} 52. Bb4 {[%emt 0:00:00]} Bh3 {[%emt 0:00:00]} 53. Be1 {[%emt 0:00:00]} Bg4 {[%emt 0:00:00]} 54. Bf2 {[%emt 0:00:00]} Ke7 {[%emt 0:00:00] Weighted Error Value: White=0.05 (flawless) /Black=0.06 (flawless)} 1/2-1/2

[Event "1000GM MLK Day RR IM-Norm 2024"]
[Site "Sunnyvale"]
[Date "2024.01.15"]
[Round "3.3"]
[White "Dominguez Aguilar, Guillermo"]
[Black "Arenas, David"]
[Result "1/2-1/2"]
[ECO "B33"]
[WhiteElo "2319"]
[BlackElo "2406"]
[Annotator "TA"]
[PlyCount "25"]
[EventDate "2024.01.12"]
[EventType "tourn"]
[EventCountry "USA"]
[SourceTitle "playchess.com"]
[Source "ChessBase"]
[SourceQuality "1"]
[TimeControl "5400+30"]

{[%evp 24,25,37,0]} 1. e4 {[%emt 1:31:00]} c5 {[%emt 0:08:26]} 2. Nf3 {[%emt 0:00:00][%cal Bg1f3,Bf3d4,Bd4b5][%mdl 32]} Nc6 {[%emt 0:00:22]} 3. d4 {[%emt 0:00:00]} cxd4 {[%emt 0:00:24]} 4. Nxd4 {[%emt 0:00:00]} Nf6 {[%emt 0:00:43]} 5. Nc3 {[%emt 0:00:00]} e5 {[%emt 0:00:25]} 6. Ndb5 {[%emt 0:00:00]} d6 {[%emt 0:00:10]} 7. Bg5 {[%emt 0:00:00]} a6 {[%emt 0:00:13]} 8. Na3 {[%emt 0:00:00]} b5 {[%emt 0:00:22]} 9. Nd5 {[%emt 0:00:00] [#]} Qa5+ $146 {[%emt 0:00:17]} ({Predecessor:} 9... Be7 10. Bxf6 Bxf6 11. c4 b4 12. Nc2 a5 13. Qf3 Be6 14. Rd1 O-O 15. Be2 Rc8 16. Nxf6+ Qxf6 17. Qxf6 gxf6 18. Rxd6 Rfd8 19. Rxd8+ Rxd8 20. b3 f5 {½-½ Dominguez Perez,L (2739)-Caruana,F (2782) World-chT Rapid 2023 (6.3)}) 10. Bd2 {[%emt 0:00:00]} Qd8 {[%emt 0:00:08]} 11. Bg5 {[%emt 0:00:00]} Qa5+ {[%emt 0:00:23] 11...b4 is the modern continuation.} 12. Bd2 {[%emt 0:00:00]} Qd8 {[%emt 0:00:13]} 13. Bg5 {[%emt 0:00:00]} 1/2-1/2

[Event "1000GM MLK Day RR IM-Norm 2024"]
[Site "Sunnyvale"]
[Date "2024.01.15"]
[Round "3.4"]
[White "Guo, Andrew"]
[Black "Delgado Ramirez, Neuris"]
[Result "0-1"]
[ECO "A62"]
[WhiteElo "2255"]
[BlackElo "2517"]
[Annotator "TA"]
[PlyCount "106"]
[EventDate "2024.01.12"]
[EventType "tourn"]
[EventCountry "USA"]
[SourceTitle "playchess.com"]
[Source "ChessBase"]
[SourceQuality "1"]
[TimeControl "5400+30"]

{[%evp 21,106,47,40,37,50,36,54,21,36,5,19,7,13,0,0,-17,15,0,25,22,19,0,0,-4,-4,-8,0,-9,-16,-20,-15,-3,-24,-21,-14,-18,-19,-27,-18,-18,-18,-17,6,0,0,0,0,-8,0,0,0,-9,0,-30,-36,-27,-27,-28,0,0,0,-41,-14,0,0,0,-7,-39,-35,-57,-55,-88,-85,-111,-83,-350,-337,-414,-409,-974,-788,-2048,-2026,-2060,-2029,-1420,-1130]} 1. d4 {[%emt 0:00:00]} Nf6 {[%emt 0:08:50]} 2. c4 {[%emt 0:00:05]} e6 {[%emt 0:00:10]} 3. g3 {[%emt 0:00:03]} c5 {[%emt 0:00:37]} 4. d5 {[%emt 0:00:07]} exd5 {[%emt 0:00:07]} 5. cxd5 {[%emt 0:00:03]} d6 {[%emt 0:00:21]} 6. Nc3 {[%emt 0:00:02]} g6 {[%emt 0:00:05]} 7. Bg2 {[%emt 0:00:05]} Bg7 {[%emt 0:00:05]} 8. Nf3 {[%emt 0:00:04]} O-O {[%emt 0:00:07]} 9. O-O {[%emt 0:00:03]} Re8 {[%emt 0:00:13]} 10. Bf4 {[%emt 0:00:04]} a6 {[%emt 0:00:54]} 11. a4 {[%emt 0:00:03]} Nh5 {[%emt 0:00:44]} 12. Bg5 {[%emt 0:02:02] A62: Modern Benoni: Fianchetto Variation without early ...Nbd7.} Qc7 {[%emt 0:00:14]} 13. Qd2 {[%emt 0:00:05]} Nd7 {[%emt 0:00:12]} 14. Rfe1 {[%emt 0:00:54] White is slightly better.} Rb8 {[%emt 0:00:13][%cal Ba8b8,Bb8b6,Bb6b4,Bb4d4][%mdl 32]} 15. a5 {[%emt 0:01:32]} b5 {[%emt 0:00:32]} 16. axb6 $1 {[%emt 0:00:15] [#]} Rxb6 $146 {[%emt 0:00:36]} ({Predecessor:} 16... Nxb6 17. Qd3 Nf6 18. e4 Ng4 19. h3 Ne5 20. Nxe5 Bxe5 21. Kh2 c4 22. Qe3 Nd7 {0-1 Jaskolka,T (2210)-Makarian,R (2499) Titled Tuesday intern op 23rd Aug Late blitz 2022 (1)}) 17. Rab1 {[%emt 0:01:42]} Nhf6 {[%emt 0:03:56]} 18. Qc2 {[%emt 0:04:34]} Qb8 {[%emt 0:02:44]} 19. h3 {[%emt 0:05:12]} Ne5 {[%emt 0:08:42]} 20. Nd2 {[%emt 0:07:52]} Rb4 {[%emt 0:04:55]} 21. Na2 {[%emt 0:03:15]} Rd4 {[%emt 0:04:22]} 22. e3 {[%emt 0:10:33]} Bf5 {[%emt 0:07:03]} 23. e4 {[%emt 0:00:18]} Bd7 {[%emt 0:00:04]} (23... Nd3 {feels hotter.} 24. Re3 Nxe4 25. Bxe4 Rexe4 26. Nxe4 Rxe4 27. Rxd3 c4) 24. Be3 {[%emt 0:25:31] [#]} Nd3 $1 {[%emt 0:00:28]} 25. Red1 {[%emt 0:00:17]} Nb4 $1 26. Nxb4 {[%emt 0:00:10]} Rxb4 {[%emt 0:00:29]} 27. b3 {[%emt 0:00:47]} Bb5 $1 {[%emt 0:02:24]} 28. Nc4 {[%emt 0:02:26]} Bxc4 {[%emt 0:00:18]} 29. bxc4 {[%emt 0:00:02]} a5 {[%emt 0:07:07]} 30. Bd2 {[%emt 0:02:03] [#]} Nd7 $1 {[%emt 0:01:09][%cal Ob8a7]} 31. Bxb4 {[%emt 0:00:43]} axb4 {[%emt 0:03:39]} 32. f4 {[%emt 0:03:05]} Bd4+ {[%emt 0:01:19]} 33. Kh2 {[%emt 0:01:20]} Qa7 {[%emt 0:00:42] Inhibits Qa4.} 34. Re1 {[%emt 0:08:06]} Qa3 {[%emt 0:00:58]} 35. Rb3 {[%emt 0:06:29]} Qa4 {[%emt 0:00:03]} 36. Reb1 {[%emt 0:00:15]} Ra8 {[%emt 0:01:36]} 37. Qd3 {[%emt 0:03:21][%cal Ob3b4]} Qa2 {[%emt 0:00:16][%mdl 1024] Black has compensation.} 38. Rf1 {[%emt 0:02:40]} Ra3 {[%emt 0:00:39]} 39. Rf3 $1 {[%emt 0:01:12][%cal Rb3a3]} Qa1 {[%emt 0:05:08][%csl Gd4][%cal Ra1g1]} 40. Rf1 {[%emt 0:02:52] Prevents Qg1+.} Qa2 {[%emt 0:07:28]} 41. Rf3 {[%emt 0:00:11][%cal Rb3a3]} Ra6 {[%emt 0:14:59]} 42. Rf1 {[%emt 0:03:13]} Qa5 {[%emt 0:01:16]} 43. Rfb1 {[%emt 0:00:41]} Qb6 {[%emt 0:00:26]} 44. Qe2 {[%emt 0:04:17]} Qa7 {[%emt 0:00:08]} (44... Ra4 $5) 45. Rc1 {[%emt 0:01:59]} Ra2 {[%emt 0:00:12][%cal Ba6a2,Ba2a1,Ba1e1][%mdl 32]} 46. Rc2 {[%emt 0:00:03]} Ra1 {[%emt 0:00:06]} 47. h4 {[%emt 0:00:11]} Qa4 {[%emt 0:00:58] Black has more active pieces.} 48. Qd3 {[%emt 0:00:30][%mdl 8192] [#] Loses the game.} (48. Rd3 $17) 48... Re1 $1 $19 {[%emt 0:00:40] Hoping for ...Re3.} 49. Qf3 {[%emt 0:00:18] Dodges Re3} h5 {[%emt 0:00:51]} 50. e5 {[%emt 0:01:30]} (50. Rd2 $142 Nf6 51. Rbd3) 50... dxe5 {[%emt 0:00:22][%cal Bd6e5,Be5e4][%mdl 32] Threatens to win with ...e4. White is weak on the dark squares. Black is clearly winning.} 51. f5 {[%emt 0:00:57]} e4 {[%emt 0:00:27][%mdl 64] Deflection} 52. Qf4 {[%emt 0:00:05]} Qxb3 {[%emt 0:01:12]} 53. fxg6 {[%emt 0:00:05]} fxg6 {[%emt 0:00:19] Weighted Error Value: White=0.45/Black=0.04 (flawless)} (53... Qxc2 $2 {gets mated.} 54. Qxf7+ Kh8 55. Qh7#) 0-1

[Event "1000GM MLK Day RR IM-Norm 2024"]
[Site "Sunnyvale"]
[Date "2024.01.15"]
[Round "3.5"]
[White "Bansal, Advay"]
[Black "Chiang, Jacob"]
[Result "1-0"]
[ECO "B66"]
[WhiteElo "2253"]
[BlackElo "2200"]
[Annotator "RC"]
[PlyCount "99"]
[EventDate "2024.01.12"]
[EventType "tourn"]
[EventCountry "USA"]
[SourceTitle "playchess.com"]
[Source "ChessBase"]
[SourceQuality "1"]
[TimeControl "5400+30"]

1. e4 {[%emt 0:00:03]} c5 {[%emt 0:00:03]} 2. Nf3 {[%emt 0:00:09]} Nc6 {[%emt 0:00:02]} 3. d4 {[%emt 0:00:12]} cxd4 {[%emt 0:00:03]} 4. Nxd4 {[%emt 0:00:05]} Nf6 {[%emt 0:00:05]} 5. Nc3 {[%emt 0:00:04]} d6 {[%emt 0:00:06]} 6. Bg5 {[%emt 0:00:03]} e6 {[%emt 0:00:49]} 7. Qd2 {[%emt 0:00:50]} Be7 {[%emt 0:02:20]} 8. O-O-O {[%emt 0:01:12]} a6 {[%emt 0:01:49]} 9. h4 {[%emt 0:01:05]} h6 {[%emt 0:02:58]} 10. Nxc6 {[%emt 0:00:33]} bxc6 {[%emt 0:00:05]} 11. Bf4 {[%emt 0:00:07]} e5 {[%emt 0:03:05]} 12. Bh2 {[%emt 0:04:00]} Be6 {[%emt 0:04:07]} 13. f3 {[%emt 0:07:14]} h5 {[%emt 0:06:48]} 14. Kb1 {[%emt 0:12:06]} Qa5 {[%emt 0:14:27]} 15. Nd5 {[%emt 0:09:34]} Qxd2 {[%emt 0:00:34]} 16. Nxf6+ {[%emt 0:00:05]} Bxf6 {[%emt 0:00:30]} 17. Rxd2 {[%emt 0:00:05]} Ke7 {[%emt 0:01:06]} 18. Bg1 {[%emt 0:05:33]} Rhd8 {[%emt 0:02:35]} 19. Be3 {[%emt 0:02:02]} d5 {[%emt 0:03:36]} 20. exd5 {[%emt 0:06:33]} cxd5 {[%emt 0:00:17]} 21. Bd3 {[%emt 0:02:27]} Kf8 {[%emt 0:08:09]} 22. Bg5 {[%emt 0:01:26]} Be7 {[%emt 0:03:41]} 23. Bxe7+ {[%emt 0:00:13]} Kxe7 {[%emt 0:02:01]} 24. Re1 {[%emt 0:04:52]} f6 {[%emt 0:01:10]} 25. f4 {[%emt 0:09:14]} e4 {[%emt 0:01:00]} 26. Be2 {[%emt 0:00:04]} g6 {[%emt 0:12:37]} 27. Rd4 {[%emt 0:00:13]} f5 {[%emt 0:03:22]} 28. Bf1 {[%emt 0:00:44]} Rdb8 {[%emt 0:01:23]} 29. a4 {[%emt 0:06:20]} Rc8 {[%emt 0:01:37]} 30. Re3 {[%emt 0:01:37]} Rc6 {[%emt 0:02:47]} 31. Rb3 {[%emt 0:04:03]} Rac8 {[%emt 0:00:29]} 32. c3 {[%emt 0:00:35]} a5 {[%emt 0:00:44]} 33. Kc2 {[%emt 0:02:16]} Rc5 {[%emt 0:04:32]} 34. Kd2 {[%emt 0:02:52]} R8c7 {[%emt 0:02:36]} 35. Rb6 {[%emt 0:05:21]} R5c6 {[%emt 0:02:00]} 36. Rxc6 {[%emt 0:01:23]} Rxc6 {[%emt 0:00:04]} 37. b4 {[%emt 0:00:09]} Kd6 {[%emt 0:00:46]} 38. bxa5 {[%emt 0:01:02]} Rc5 {[%emt 0:00:43]} 39. Bb5 {[%emt 0:03:46]} Rc7 {[%emt 0:00:18]} 40. Rb4 {[%emt 0:03:09]} Kc5 {[%emt 0:00:48]} 41. Be8 {[%emt 0:01:13]} Rc8 {[%emt 0:01:05]} 42. Bxg6 {[%emt 0:06:56]} Rg8 {[%emt 0:00:08]} 43. Bxh5 {[%emt 0:00:00]} Rxg2+ {[%emt 0:00:04]} 44. Be2 {[%emt 0:00:00]} Bc8 {[%emt 0:00:51]} 45. Rb6 {[%emt 0:00:00]} Bd7 {[%emt 0:00:31]} 46. Rb4 {[%emt 0:00:00]} Bc8 {[%emt 0:02:01]} 47. Rb5+ {[%emt 0:00:00]} Kd6 {[%emt 0:00:03]} 48. h5 {[%emt 0:00:00]} Rh2 {[%emt 0:00:07]} 49. a6 {[%emt 0:00:00]} Kc6 {[%emt 0:00:34]} 50. Ra5 {[%emt 0:00:00]} 1-0

[Event "1000GM MLK Day RR IM-Norm 2024"]
[Site "Sunnyvale"]
[Date "2024.01.16"]
[Round "4.1"]
[White "Deng, Henry"]
[Black "Chiang, Jacob"]
[Result "1/2-1/2"]
[ECO "B30"]
[WhiteElo "2281"]
[BlackElo "2200"]
[Annotator "RC"]
[PlyCount "60"]
[EventDate "2024.01.12"]
[EventType "tourn"]
[EventCountry "USA"]
[SourceTitle "playchess.com"]
[Source "ChessBase"]
[SourceQuality "1"]
[TimeControl "5400+30"]

1. e4 {[%emt 0:00:01]} c5 {[%emt 0:00:03]} 2. Nc3 {[%emt 0:00:07]} Nc6 {[%emt 0:00:01]} 3. Bb5 {[%emt 0:00:15]} Nd4 {[%emt 0:00:06]} 4. Nf3 {[%emt 0:00:06]} e6 {[%emt 0:00:09]} 5. O-O {[%emt 0:00:13]} a6 {[%emt 0:00:03]} 6. Bd3 {[%emt 0:00:03]} Nc6 {[%emt 0:00:03]} 7. a3 {[%emt 0:00:52]} b5 {[%emt 0:00:31]} 8. Be2 {[%emt 0:00:36]} Qb6 {[%emt 0:02:28]} 9. d3 {[%emt 0:03:47]} Nge7 {[%emt 0:04:13]} 10. Be3 {[%emt 0:06:42]} Nd4 {[%emt 1:27:53]} 11. Nb1 {[%emt 0:03:30]} Ng6 {[%emt 0:00:00]} 12. c3 {[%emt 0:02:20]} Nxe2+ {[%emt 0:00:00]} 13. Qxe2 {[%emt 0:00:05]} Qc6 {[%emt 0:00:00]} 14. Nbd2 {[%emt 0:02:52]} Be7 {[%emt 0:00:00]} 15. b4 {[%emt 0:05:02]} d6 {[%emt 0:00:00]} 16. c4 {[%emt 0:04:58]} O-O {[%emt 0:00:00]} 17. Rfc1 {[%emt 0:06:24]} Qd7 {[%emt 0:00:00]} 18. d4 {[%emt 0:09:06]} cxd4 {[%emt 0:00:00]} 19. Nxd4 {[%emt 0:02:57]} Bf6 {[%emt 0:00:00]} 20. Ra2 {[%emt 0:04:32]} Bxd4 {[%emt 0:00:00]} 21. Bxd4 {[%emt 0:00:25]} Bb7 {[%emt 0:00:00]} 22. Rac2 {[%emt 0:04:47]} Rfc8 {[%emt 0:00:00]} 23. Be3 {[%emt 0:04:39]} d5 {[%emt 0:00:00]} 24. cxd5 {[%emt 0:02:20]} exd5 {[%emt 0:00:00]} 25. Rxc8+ {[%emt 0:02:01]} Rxc8 {[%emt 0:00:00]} 26. Rxc8+ {[%emt 0:01:15]} Qxc8 {[%emt 0:00:00]} 27. exd5 {[%emt 0:00:33]} Bxd5 {[%emt 0:00:00]} 28. Qd3 {[%emt 0:00:19]} Qe6 {[%emt 0:00:00]} 29. Qd4 {[%emt 0:01:13]} h6 {[%emt 0:00:00]} 30. f3 {[%emt 0:02:14]} Kh7 {[%emt 0:10:00]} 1/2-1/2

[Event "1000GM MLK Day RR IM-Norm 2024"]
[Site "Sunnyvale"]
[Date "2024.01.16"]
[Round "4.2"]
[White "Delgado Ramirez, Neuris"]
[Black "Bansal, Advay"]
[Result "1-0"]
[ECO "B52"]
[WhiteElo "2517"]
[BlackElo "2253"]
[Annotator "TA"]
[PlyCount "85"]
[EventDate "2024.01.12"]
[EventType "tourn"]
[EventCountry "USA"]
[SourceTitle "playchess.com"]
[Source "ChessBase"]
[SourceQuality "1"]
[TimeControl "5400+30"]

{[%evp 17,85,0,4,0,4,-13,-11,-13,-16,-7,-7,-4,-9,-24,-16,-14,-13,-22,0,0,0,0,0,0,0,0,0,-30,0,0,0,-11,-14,-17,-30,-23,-35,-45,-39,-89,-67,-75,-81,-199,-153,-183,-184,-182,-190,-172,-54,-87,-18,-18,244,244,254,254,252,244,236,237,237,237,232,230,1170,1117,1008,955]} 1. e4 {[%emt 0:06:45]} c5 {[%emt 1:31:00]} 2. Nf3 d6 3. Bb5+ Bd7 4. Bxd7+ Nxd7 5. O-O Ngf6 {[%cal Bg8f6,Bf6e8,Be8d6,Bd6f5][%mdl 32]} 6. Qe2 e6 7. c3 Be7 8. d4 O-O {8...0-0 is better than 8...cxd4.} 9. e5 Ne8 10. Rd1 {B52: Sicilian: Moscow Variation with 3...Bd7.} cxd4 11. exd6 Nxd6 {[#]} 12. Rxd4 $146 {The position is equal.} ({Predecessor:} 12. Nxd4 Qc7 13. Bf4 e5 14. Bxe5 Nxe5 15. Qxe5 Bf6 16. Qf4 Qb6 17. Nb3 Rfe8 18. Na3 {½-½ Harsha,B (2582)-Oparin,G (2683) Speed Chess Q2 blitz 2022 (14)}) 12... Nf5 13. Rd1 Qc7 14. Nbd2 Rfd8 {[%cal Bf8d8,Bd8d5,Bd5g5,Bg5g6][%mdl 32]} 15. Nb3 Nf6 16. Nfd4 Nxd4 17. Nxd4 Bc5 18. Bg5 Bxd4 {[%emt 0:00:00]} 19. cxd4 {[%emt 0:08:43]} Rd5 {[%emt 0:00:00]} 20. Bxf6 {[%emt 0:03:18]} gxf6 {[%emt 0:00:00]} 21. Qg4+ {[%emt 0:00:07]} Rg5 {[%emt 0:00:00]} 22. Qh4 {[%emt 0:00:09]} Qc6 {[%emt 0:00:00][%csl Gg5][%cal Rc6g2]} 23. d5 {[%emt 0:00:33]} exd5 {[%emt 0:00:00]} 24. f4 {[%emt 0:00:14]} Rg6 $40 {[%emt 0:00:00][%mdl 128] Black has some attack.} 25. Rac1 {[%emt 0:00:38] Active counter play!} Qa4 {[%emt 0:00:00]} 26. Qf2 {[%emt 0:01:00]} Qxa2 {[%emt 0:00:00]} 27. Qd4 {[%emt 0:01:28]} Qa6 {[%emt 0:00:00]} 28. f5 {[%emt 0:00:34]} (28. Qxd5 $15 Qb6+ 29. Qd4) 28... Rg5 $17 {[%emt 0:00:00]} 29. h4 {[%emt 0:00:22]} Rg7 {[%emt 0:00:00]} (29... Rxf5 $2 30. Qg4+ $18) 30. Re1 {[%emt 0:01:16]} (30. Qd3 $17 {might work better.}) 30... h5 {[%emt 0:00:07]} (30... Kh8 $19 31. Rf1 Qd6) 31. Rc7 {[%emt 1:20:53]} Rg4 {[%emt 0:02:32]} 32. Qf2 {[%emt 0:00:00]} d4 {[%emt 0:01:06]} 33. Ree7 {[%emt 0:00:00]} Rd8 {[%emt 0:04:08]} (33... Rf8 $1 $19 {Threatens to win with ...d3.} 34. Rcd7 Qd3 35. Rxb7 Rc8 36. Rxa7 Rc1+ 37. Re1 Rxe1+ 38. Qxe1 Kg7) 34. Qe1 $15 {[%emt 0:00:00] White threatens Re8+ and mate.} Qd6 {[%emt 0:01:47]} (34... Qb5 $17 {Hoping for ...d3.} 35. Rxf7 Qe5 36. Qxe5 fxe5) 35. Red7 $11 {[%emt 0:00:00][%mdl 64] Decoy. Really sharp!} Qf8 {[%emt 0:01:14][%mdl 8192] [#] This costs Black the game.} (35... Qxd7 $2 36. Rxd7 Rxd7 37. Qe8+ Kg7 38. Qxd7 $18) (35... Rxd7 $11 36. Qe8+ Qf8 37. Qxd7 Kh7) 36. Rxf7 $1 $18 {[%emt 0:00:00]} Qxf7 {[%emt 0:01:17]} 37. Rxf7 {[%emt 0:00:00]} Kxf7 {[%emt 0:00:01][%mdl 4096] Endgame KQ-KRR} 38. Qe6+ {[%emt 0:00:00][%mdl 64] Deflection} Kf8 {[%emt 0:00:01]} 39. Qxf6+ {[%emt 0:00:00]} Ke8 {[%emt 0:00:03] [#]} 40. Qe5+ $1 {[%emt 0:00:00][%mdl 1024] White has strong compensation.} ({Less strong is} 40. Qh8+ Kd7 41. Qxh5 Rdg8 $16) 40... Kf8 {[%emt 0:01:57]} 41. f6 {[%emt 0:00:00] White wants to mate with Qe7+.} Rd7 {[%emt 0:00:06] Against Qe7+} (41... Re8 42. Qc5+ (42. Qxh5 Ree4 $18) 42... Kf7 43. Qxh5+ Rg6 44. Qd5+ Kxf6 45. Qxd4+ (45. Qxb7 Reg8 $11) 45... Kf7 46. Qxa7 Re7) 42. Qc5+ {[%emt 0:00:00]} Kf7 {[%emt 0:00:11]} 43. Qxh5+ {[%emt 0:00:00] Excellently played by Delgado Ramirez!   Weighted Error Value: White=0.10 (very precise) /Black=0.24 (precise)} 1-0

[Event "1000GM MLK Day RR IM-Norm 2024"]
[Site "Sunnyvale"]
[Date "2024.01.16"]
[Round "4.3"]
[White "Arenas, David"]
[Black "Guo, Andrew"]
[Result "1/2-1/2"]
[ECO "B31"]
[WhiteElo "2406"]
[BlackElo "2255"]
[Annotator "TA"]
[PlyCount "52"]
[EventDate "2024.01.12"]
[EventType "tourn"]
[EventCountry "USA"]
[SourceTitle "playchess.com"]
[Source "ChessBase"]
[SourceQuality "1"]
[TimeControl "5400+30"]

{[%evp 17,52,0,8,0,20,8,16,9,27,15,21,12,15,16,18,13,10,2,35,18,29,18,38,21,52,58,56,24,28,21,27,-25,0,0,0,-14,0]} 1. e4 {[%emt 0:06:43]} c5 {[%emt 0:00:04]} 2. Nf3 {[%emt 0:00:17]} Nc6 {[%emt 0:00:07]} 3. Bb5 {[%emt 0:00:07]} g6 {[%emt 0:00:03]} 4. O-O {[%emt 0:00:27]} Bg7 {[%emt 0:00:12]} 5. c3 {[%emt 0:00:09]} Nf6 {[%emt 0:00:16]} 6. Re1 {[%emt 0:00:13]} O-O {[%emt 0:00:04]} 7. d4 {[%emt 0:00:19]} d5 {[%emt 0:00:40]} 8. e5 {[%emt 0:00:16]} Ne4 {[%emt 0:00:04]} 9. Bxc6 {[%emt 0:00:09]} bxc6 {[%emt 0:00:08]} 10. Be3 {[%emt 0:00:05] B31: Sicilian: 2...Nc6 3 Bb5 g6.} Rb8 {[%emt 0:02:21]} 11. Qc1 {[%emt 0:00:07]} cxd4 {[%emt 0:04:04]} 12. cxd4 {[%emt 0:01:59]} f6 {[%emt 0:01:39]} 13. exf6 {[%emt 0:09:40]} exf6 {[%emt 0:01:23]} 14. Nbd2 {[%emt 0:00:44][%cal Bb1d2,Bd2b3,Bb3c5,Bc5a4][%mdl 32] [#]} Rb6 $146 {[%emt 0:06:36]} ({Predecessor:} 14... Re8 15. Qxc6 Bf5 16. Nb3 Qd7 17. Qxd7 Bxd7 18. Nfd2 f5 19. f3 Nxd2 20. Bxd2 Rxe1+ 21. Rxe1 {½-½ Xu,Y (2507)-Bu,X (2709) CHN-chT Div-A Rapid 2022 (11.1)}) 15. Nb3 {[%emt 0:05:49]} Re8 {[%emt 0:03:54]} 16. Nfd2 {[%emt 0:03:41][%cal Bf3d2,Bd2f1,Bf1g3][%mdl 32]} Nd6 {[%emt 0:03:39]} 17. Nc5 {[%emt 0:12:19]} Bf5 {[%emt 0:03:09]} 18. Na4 {[%emt 0:04:32] Excellent horsemanship.} Ra6 {[%emt 0:00:16]} 19. b3 {[%emt 0:00:14]} Bf8 {[%emt 0:01:30]} 20. Nf1 {[%emt 0:13:52]} Nb5 {[%emt 0:11:59]} 21. Ng3 {[%emt 0:01:52]} Bd7 {[%emt 0:00:34]} 22. Qd2 {[%emt 0:00:48]} (22. Nc5 $5 {[%cal Rc5a6]} Rb6 23. Qd2 $11) 22... Qa5 $1 {[%emt 0:01:53] [#] ...Qxd2 would be deadly.} 23. Qxa5 {[%emt 0:03:05]} Rxa5 {[%emt 0:01:07]} 24. Rec1 {[%emt 0:02:17]} (24. Nc5 $142 Bxc5 25. dxc5) 24... Ra6 {[%emt 0:02:16]} 25. Nc5 {[%emt 0:04:32]} Bxc5 {[%emt 0:00:09]} 26. Rxc5 {[%emt 0:00:03]} Ra3 {[%emt 0:02:30] Weighted Error Value: White=0.11 (very precise) /Black=0.09 (flawless)} 1/2-1/2